[Event "Early-Titled-Tuesday-Blitz-February-06-2024"]
[Site "Chess.com"]
[Date "2024.02.06"]
[Round "8"]
[White "Agibileg"]
[Black "TigrVShlyape"]
[Result "1/2-1/2"]
[WhiteElo "2752"]
[BlackElo "2955"]
[TimeControl "180+1"]
[EndTime "9:29:13 PST"]
[Termination "Game drawn by repetition"]

1. d4 {[%clk 0:03:00.9]} 1... f5 {[%clk 0:02:56.1]} 2. g3 {[%clk 0:02:58.4]}
2... Nf6 {[%clk 0:02:53.9]} 3. Bg2 {[%clk 0:02:58.9]} 3... g6 {[%clk 0:02:53.4]}
4. Nf3 {[%clk 0:02:59.1]} 4... Bg7 {[%clk 0:02:53.5]} 5. O-O {[%clk 0:02:59.7]}
5... d6 {[%clk 0:02:51]} 6. b3 {[%clk 0:03:00]} 6... c6 {[%clk 0:02:49.3]} 7.
Bb2 {[%clk 0:02:59.6]} 7... O-O {[%clk 0:02:49.8]} 8. c4 {[%clk 0:02:55.8]} 8...
a5 {[%clk 0:02:49.3]} 9. Qc2 {[%clk 0:02:53.8]} 9... Na6 {[%clk 0:02:49.6]} 10.
a3 {[%clk 0:02:53.3]} 10... Rb8 {[%clk 0:02:44.5]} 11. Nbd2 {[%clk 0:02:51.1]}
11... b5 {[%clk 0:02:39.4]} 12. Rae1 {[%clk 0:02:22.5]} 12... bxc4 {[%clk
0:02:00.3]} 13. bxc4 {[%clk 0:02:22.3]} 13... Ne4 {[%clk 0:01:58.3]} 14. Ba1
{[%clk 0:02:21.3]} 14... d5 {[%clk 0:01:53.5]} 15. cxd5 {[%clk 0:02:10.2]} 15...
cxd5 {[%clk 0:01:52.8]} 16. Ne5 {[%clk 0:02:10.1]} 16... Qd6 {[%clk 0:01:51.6]}
17. f3 {[%clk 0:01:58.6]} 17... Nxd2 {[%clk 0:01:49.5]} 18. Qxd2 {[%clk
0:01:59.5]} 18... Qxa3 {[%clk 0:01:36.2]} 19. e4 {[%clk 0:01:31.7]} 19... Nb4
{[%clk 0:01:19.7]} 20. exd5 {[%clk 0:01:19.5]} 20... Nxd5 {[%clk 0:01:18.8]} 21.
f4 {[%clk 0:01:19.4]} 21... e6 {[%clk 0:01:06.6]} 22. Nc6 {[%clk 0:01:07.4]}
22... Rb7 {[%clk 0:00:59.9]} 23. Nxa5 {[%clk 0:01:05]} 23... Rc7 {[%clk
0:00:54.2]} 24. Bb2 {[%clk 0:00:32]} 24... Qd6 {[%clk 0:00:47.9]} 25. Nb3 {[%clk
0:00:30.9]} 25... Qb6 {[%clk 0:00:43.5]} 26. Rf3 {[%clk 0:00:20.7]} 26... Bd7
{[%clk 0:00:34.6]} 27. Ba1 {[%clk 0:00:15.9]} 27... Ra8 {[%clk 0:00:34.2]} 28.
Kh1 {[%clk 0:00:14.3]} 28... Bc8 {[%clk 0:00:27]} 29. Nc5 {[%clk 0:00:14.3]}
29... Qa5 {[%clk 0:00:25.5]} 30. Qxa5 {[%clk 0:00:11.5]} 30... Rxa5 {[%clk
0:00:25.1]} 31. Bb2 {[%clk 0:00:09.6]} 31... Raxc5 {[%clk 0:00:24.1]} 32. dxc5
{[%clk 0:00:09.7]} 32... Bxb2 {[%clk 0:00:24.6]} 33. Rb3 {[%clk 0:00:10.3]}
33... Bd4 {[%clk 0:00:23.8]} 34. Rb8 {[%clk 0:00:09.8]} 34... Kf7 {[%clk
0:00:23.6]} 35. Rd1 {[%clk 0:00:05.8]} 35... Bxc5 {[%clk 0:00:23.4]} 36. Bxd5
{[%clk 0:00:06.2]} 36... exd5 {[%clk 0:00:23.3]} 37. Rxd5 {[%clk 0:00:07.1]}
37... Ba7 {[%clk 0:00:22.2]} 38. Rxc8 {[%clk 0:00:06]} 38... Rxc8 {[%clk
0:00:21.3]} 39. Rd7+ {[%clk 0:00:04.6]} 39... Kf6 {[%clk 0:00:20.7]} 40. Rxa7
{[%clk 0:00:05.5]} 40... h5 {[%clk 0:00:20.8]} 41. h4 {[%clk 0:00:04.6]} 41...
Rc2 {[%clk 0:00:20.4]} 42. Ra6+ {[%clk 0:00:04.1]} 42... Kf7 {[%clk 0:00:19.8]}
43. Rb6 {[%clk 0:00:04.5]} 43... Rd2 {[%clk 0:00:19]} 44. Ra6 {[%clk 0:00:04.1]}
44... Rc2 {[%clk 0:00:19.3]} 45. Rb6 {[%clk 0:00:04.5]} 45... Rd2 {[%clk
0:00:19.4]} 46. Rc6 {[%clk 0:00:04.8]} 46... Re2 {[%clk 0:00:19.2]} 47. Rb6
{[%clk 0:00:05.1]} 47... Re6 {[%clk 0:00:19.1]} 48. Rb7+ {[%clk 0:00:05.4]}
48... Kf6 {[%clk 0:00:19.4]} 49. Kg2 {[%clk 0:00:04.9]} 49... Rc6 {[%clk
0:00:19.2]} 50. Kh3 {[%clk 0:00:05]} 50... Ke6 {[%clk 0:00:19.6]} 51. Rb5 {[%clk
0:00:04.1]} 51... Rd6 {[%clk 0:00:18.1]} 52. Ra5 {[%clk 0:00:04.5]} 52... Rd5
{[%clk 0:00:18.2]} 53. Ra6+ {[%clk 0:00:04.8]} 53... Rd6 {[%clk 0:00:18.5]} 54.
Ra5 {[%clk 0:00:05.2]} 54... Rc6 {[%clk 0:00:18.8]} 55. Rb5 {[%clk 0:00:05.3]}
55... Kd6 {[%clk 0:00:18.5]} 56. Ra5 {[%clk 0:00:05.6]} 56... Rc5 {[%clk
0:00:18.6]} 57. Ra6+ {[%clk 0:00:05.8]} 57... Rc6 {[%clk 0:00:18.9]} 58. Ra5
{[%clk 0:00:06.4]} 58... Ke6 {[%clk 0:00:19.2]} 59. Rb5 {[%clk 0:00:06.4]}
1/2-1/2

[Event "Early-Titled-Tuesday-Blitz-February-06-2024"]
[Site "Chess.com"]
[Date "2024.02.06"]
[Round "8"]
[White "karinachess1"]
[Black "Eagle_2019"]
[Result "0-1"]
[WhiteElo "2643"]
[BlackElo "2863"]
[TimeControl "180+1"]
[EndTime "9:29:14 PST"]
[Termination "Eagle_2019 won by checkmate"]

1. d4 {[%clk 0:02:59.7]} 1... d5 {[%clk 0:02:59.6]} 2. c4 {[%clk 0:02:59.4]}
2... e6 {[%clk 0:02:59.5]} 3. Nc3 {[%clk 0:02:59.4]} 3... Nf6 {[%clk 0:02:59.3]}
4. cxd5 {[%clk 0:02:59.4]} 4... exd5 {[%clk 0:02:59.4]} 5. Bg5 {[%clk 0:02:59]}
5... c6 {[%clk 0:02:59.6]} 6. e3 {[%clk 0:02:59.1]} 6... Bd6 {[%clk 0:02:59]} 7.
Bd3 {[%clk 0:02:57.2]} 7... O-O {[%clk 0:02:58.6]} 8. Nf3 {[%clk 0:02:54.5]}
8... Be6 {[%clk 0:02:54.8]} 9. Qc2 {[%clk 0:02:52.1]} 9... h6 {[%clk 0:02:53.9]}
10. Bh4 {[%clk 0:02:52]} 10... Nbd7 {[%clk 0:02:53.8]} 11. h3 {[%clk 0:02:52.2]}
11... Qc7 {[%clk 0:02:36.9]} 12. Ne2 {[%clk 0:02:35.2]} 12... Rfe8 {[%clk
0:02:29.9]} 13. O-O {[%clk 0:02:28.1]} 13... b6 {[%clk 0:02:22.2]} 14. Bg3
{[%clk 0:02:25.9]} 14... c5 {[%clk 0:02:19.9]} 15. Bxd6 {[%clk 0:02:17.6]} 15...
Qxd6 {[%clk 0:02:20.8]} 16. Ng3 {[%clk 0:02:04.7]} 16... c4 {[%clk 0:02:17]} 17.
Bf5 {[%clk 0:02:04.3]} 17... b5 {[%clk 0:02:16.9]} 18. a3 {[%clk 0:01:50.6]}
18... a5 {[%clk 0:02:14.7]} 19. Rfe1 {[%clk 0:01:42.4]} 19... Bxf5 {[%clk
0:02:05]} 20. Qxf5 {[%clk 0:01:35.3]} 20... g6 {[%clk 0:02:03.7]} 21. Qc2 {[%clk
0:01:32.3]} 21... Qc6 {[%clk 0:02:00.6]} 22. Nd2 {[%clk 0:01:18.5]} 22... h5
{[%clk 0:01:54.4]} 23. Ne2 {[%clk 0:01:03.3]} 23... b4 {[%clk 0:01:51.4]} 24.
axb4 {[%clk 0:01:02.8]} 24... axb4 {[%clk 0:01:52.3]} 25. Nf4 {[%clk 0:00:57.3]}
25... Kg7 {[%clk 0:01:48.8]} 26. Nf3 {[%clk 0:00:31.3]} 26... Ne4 {[%clk
0:01:45.4]} 27. Nd2 {[%clk 0:00:30.4]} 27... Ndf6 {[%clk 0:01:38.4]} 28. Nxe4
{[%clk 0:00:28.2]} 28... Nxe4 {[%clk 0:01:39.3]} 29. Rxa8 {[%clk 0:00:26.8]}
29... Rxa8 {[%clk 0:01:36.5]} 30. f3 {[%clk 0:00:27.2]} 30... Nd6 {[%clk
0:01:23]} 31. e4 {[%clk 0:00:27.7]} 31... dxe4 {[%clk 0:01:22.8]} 32. fxe4
{[%clk 0:00:28.6]} 32... Nb5 {[%clk 0:01:22.6]} 33. d5 {[%clk 0:00:27.3]} 33...
Qc5+ {[%clk 0:01:19.6]} 34. Kh1 {[%clk 0:00:26.8]} 34... c3 {[%clk 0:01:16.8]}
35. bxc3 {[%clk 0:00:25.8]} 35... Qxc3 {[%clk 0:01:14.6]} 36. Qf2 {[%clk
0:00:21.6]} 36... b3 {[%clk 0:01:00.1]} 37. e5 {[%clk 0:00:21.9]} 37... b2
{[%clk 0:00:54.6]} 38. Ne6+ {[%clk 0:00:22.3]} 38... Kg8 {[%clk 0:00:32.2]} 39.
Rf1 {[%clk 0:00:22]} 39... f5 {[%clk 0:00:07]} 40. Qb6 {[%clk 0:00:12.4]} 40...
Qd3 {[%clk 0:00:05]} 41. Rg1 {[%clk 0:00:09.8]} 41... b1=Q {[%clk 0:00:04]} 42.
Qb7 {[%clk 0:00:10.2]} 42... Qxg1+ {[%clk 0:00:03.6]} 43. Kxg1 {[%clk
0:00:11.1]} 43... Qe3+ {[%clk 0:00:03.7]} 44. Kh1 {[%clk 0:00:03.6]} 44... Qe1+
{[%clk 0:00:02.9]} 45. Kh2 {[%clk 0:00:03.8]} 45... Qxe5+ {[%clk 0:00:03.6]} 46.
Kg1 {[%clk 0:00:03.7]} 46... Qe1+ {[%clk 0:00:03.4]} 47. Kh2 {[%clk 0:00:04]}
47... Qe5+ {[%clk 0:00:03.8]} 48. Kg1 {[%clk 0:00:04.6]} 48... Ra1+ {[%clk
0:00:03.5]} 49. Kf2 {[%clk 0:00:05.1]} 49... Qb2+ {[%clk 0:00:02.7]} 50. Kf3
{[%clk 0:00:04.9]} 50... Ra3+ {[%clk 0:00:02.6]} 51. Kf4 {[%clk 0:00:05.4]}
51... Qd2+ {[%clk 0:00:03]} 52. Ke5 {[%clk 0:00:05.8]} 52... Qc3+ {[%clk
0:00:03.4]} 53. Kf4 {[%clk 0:00:05.1]} 53... Qe3# {[%clk 0:00:03.4]} 0-1

[Event "Early-Titled-Tuesday-Blitz-February-06-2024"]
[Site "Chess.com"]
[Date "2024.02.06"]
[Round "8"]
[White "ImportedItalianMaple"]
[Black "only_strong_moves"]
[Result "1-0"]
[WhiteElo "2506"]
[BlackElo "2656"]
[TimeControl "180+1"]
[EndTime "9:29:16 PST"]
[Termination "ImportedItalianMaple won on time"]

1. Nf3 {[%clk 0:03:00.9]} 1... Nf6 {[%clk 0:02:59.3]} 2. g3 {[%clk 0:03:01.3]}
2... e6 {[%clk 0:03:00]} 3. Bg2 {[%clk 0:03:01.7]} 3... d5 {[%clk 0:03:00.9]} 4.
O-O {[%clk 0:03:02.2]} 4... Be7 {[%clk 0:03:01.6]} 5. c4 {[%clk 0:03:02.7]} 5...
O-O {[%clk 0:03:02.5]} 6. b3 {[%clk 0:03:01.8]} 6... d4 {[%clk 0:03:02.1]} 7. e3
{[%clk 0:03:00]} 7... c5 {[%clk 0:03:02.5]} 8. Ne5 {[%clk 0:02:45.1]} 8... Nbd7
{[%clk 0:02:50.8]} 9. exd4 {[%clk 0:02:34.1]} 9... cxd4 {[%clk 0:02:51.7]} 10.
Nxd7 {[%clk 0:02:28]} 10... Qxd7 {[%clk 0:02:47]} 11. Re1 {[%clk 0:02:24.3]}
11... a5 {[%clk 0:02:46.4]} 12. d3 {[%clk 0:02:19.5]} 12... Ra6 {[%clk
0:02:44.9]} 13. Na3 {[%clk 0:02:17.7]} 13... Bb4 {[%clk 0:02:40.7]} 14. Re2
{[%clk 0:02:15]} 14... e5 {[%clk 0:02:36.7]} 15. Nc2 {[%clk 0:01:51.6]} 15...
Bd6 {[%clk 0:02:27.6]} 16. c5 {[%clk 0:01:47.1]} 16... Bxc5 {[%clk 0:02:16.9]}
17. Rxe5 {[%clk 0:01:46.9]} 17... Bd6 {[%clk 0:02:17.7]} 18. Re1 {[%clk
0:01:40.5]} 18... a4 {[%clk 0:02:14.3]} 19. Bb2 {[%clk 0:01:38]} 19... Bc5
{[%clk 0:02:13.4]} 20. b4 {[%clk 0:01:35.5]} 20... Ba7 {[%clk 0:02:10.2]} 21. a3
{[%clk 0:01:35.3]} 21... Rd8 {[%clk 0:02:06.7]} 22. Qe2 {[%clk 0:01:25.4]} 22...
h6 {[%clk 0:02:06.3]} 23. Qe7 {[%clk 0:01:24.1]} 23... Qxe7 {[%clk 0:01:35.7]}
24. Rxe7 {[%clk 0:01:25]} 24... b5 {[%clk 0:00:57]} 25. Rae1 {[%clk 0:01:13.1]}
25... Kf8 {[%clk 0:00:56.4]} 26. Rc7 {[%clk 0:00:40.5]} 26... Bf5 {[%clk
0:00:49.3]} 27. Ree7 {[%clk 0:00:36.6]} 27... Rd7 {[%clk 0:00:34]} 28. Rexd7
{[%clk 0:00:30.6]} 28... Bxd7 {[%clk 0:00:31.8]} 29. Nxd4 {[%clk 0:00:29.8]}
29... Bb8 {[%clk 0:00:15]} 30. Rb7 {[%clk 0:00:27]} 30... Ba7 {[%clk 0:00:08.6]}
31. Nxb5 {[%clk 0:00:22.2]} 31... Bxb5 {[%clk 0:00:09.5]} 32. Rxb5 {[%clk
0:00:22.6]} 32... Ng4 {[%clk 0:00:09.7]} 33. d4 {[%clk 0:00:21.2]} 33... Re6
{[%clk 0:00:08.2]} 34. Bf3 {[%clk 0:00:17.1]} 34... Re1+ {[%clk 0:00:07.2]} 35.
Kg2 {[%clk 0:00:17.8]} 35... Nf6 {[%clk 0:00:06.5]} 36. Rb7 {[%clk 0:00:17.1]}
36... Rb1 {[%clk 0:00:06.6]} 37. Rxa7 {[%clk 0:00:14.9]} 37... Rxb2 {[%clk
0:00:07.2]} 38. Rxa4 {[%clk 0:00:15.6]} 38... g5 {[%clk 0:00:05.6]} 39. h3
{[%clk 0:00:14.3]} 39... h5 {[%clk 0:00:05.4]} 40. g4 {[%clk 0:00:15]} 40...
hxg4 {[%clk 0:00:05.2]} 41. hxg4 {[%clk 0:00:15.9]} 41... Ne8 {[%clk 0:00:04.7]}
42. Ra8 {[%clk 0:00:16.1]} 42... Ke7 {[%clk 0:00:04.9]} 43. b5 {[%clk
0:00:11.7]} 43... Nd6 {[%clk 0:00:04.9]} 44. Ra7+ {[%clk 0:00:10.2]} 44... Ke6
{[%clk 0:00:04.7]} 45. d5+ {[%clk 0:00:08.9]} 45... Ke5 {[%clk 0:00:04.9]} 46.
Re7+ {[%clk 0:00:08.6]} 46... Kf6 {[%clk 0:00:04.8]} 47. Rd7 {[%clk 0:00:07.8]}
47... Nc4 {[%clk 0:00:05.3]} 48. Rb7 {[%clk 0:00:08.4]} 48... Ne3+ {[%clk
0:00:05.1]} 49. Kg3 {[%clk 0:00:08.2]} 49... Nf1+ {[%clk 0:00:05.8]} 50. Kg2
{[%clk 0:00:08.7]} 50... Ne3+ {[%clk 0:00:06.4]} 51. Kg1 {[%clk 0:00:08.3]}
51... Rb1+ {[%clk 0:00:06]} 52. Kh2 {[%clk 0:00:08.9]} 52... Nf1+ {[%clk
0:00:05.7]} 53. Kg2 {[%clk 0:00:09.6]} 53... Nd2 {[%clk 0:00:05.5]} 54. d6
{[%clk 0:00:09.4]} 54... Nc4 {[%clk 0:00:04.6]} 55. d7 {[%clk 0:00:09]} 55...
Ke7 {[%clk 0:00:04.1]} 56. Bc6 {[%clk 0:00:08.4]} 56... Rb2 {[%clk 0:00:03]} 57.
Rb8 {[%clk 0:00:08.5]} 57... Rd2 {[%clk 0:00:01.4]} 58. Re8+ {[%clk 0:00:07.9]}
58... Kf6 {[%clk 0:00:01.3]} 59. d8=Q+ {[%clk 0:00:08.5]} 1-0

[Event "Early-Titled-Tuesday-Blitz-February-06-2024"]
[Site "Chess.com"]
[Date "2024.02.06"]
[Round "8"]
[White "Ariadna_Atreides"]
[Black "pfalcon1949"]
[Result "1-0"]
[WhiteElo "2173"]
[BlackElo "1945"]
[TimeControl "180+1"]
[EndTime "9:29:16 PST"]
[Termination "Ariadna_Atreides won by checkmate"]

1. d4 {[%clk 0:03:00.9]} 1... Nf6 {[%clk 0:02:59.1]} 2. Nf3 {[%clk 0:03:00]}
2... d5 {[%clk 0:02:57.2]} 3. Bf4 {[%clk 0:02:58.8]} 3... c5 {[%clk 0:02:55.9]}
4. e3 {[%clk 0:02:58.1]} 4... Nc6 {[%clk 0:02:55.4]} 5. Bb5 {[%clk 0:02:57.2]}
5... Qa5+ {[%clk 0:02:44.5]} 6. Nc3 {[%clk 0:02:56]} 6... cxd4 {[%clk
0:02:42.4]} 7. Nxd4 {[%clk 0:02:45.3]} 7... Bd7 {[%clk 0:02:38.9]} 8. O-O {[%clk
0:02:43]} 8... Nxd4 {[%clk 0:02:29.3]} 9. Bxd7+ {[%clk 0:02:40.5]} 9... Nxd7
{[%clk 0:02:29.4]} 10. Qxd4 {[%clk 0:02:32]} 10... e6 {[%clk 0:02:29]} 11. a3
{[%clk 0:02:31.3]} 11... Qc5 {[%clk 0:02:25]} 12. Rad1 {[%clk 0:02:14.4]} 12...
Qxd4 {[%clk 0:02:24.3]} 13. exd4 {[%clk 0:02:11.7]} 13... a6 {[%clk 0:02:23.2]}
14. Rfe1 {[%clk 0:02:08.9]} 14... Be7 {[%clk 0:02:21.5]} 15. h3 {[%clk
0:02:07.5]} 15... Nf6 {[%clk 0:02:19.8]} 16. Be5 {[%clk 0:02:04.4]} 16... O-O
{[%clk 0:02:17]} 17. Ne2 {[%clk 0:01:59]} 17... Rac8 {[%clk 0:02:16.6]} 18. c3
{[%clk 0:01:58.7]} 18... b5 {[%clk 0:02:15.8]} 19. Nf4 {[%clk 0:01:57.3]} 19...
Rc6 {[%clk 0:02:14.7]} 20. Nd3 {[%clk 0:01:56.7]} 20... Rfc8 {[%clk 0:02:14.2]}
21. Bxf6 {[%clk 0:01:49.5]} 21... gxf6 {[%clk 0:02:11.7]} 22. f4 {[%clk
0:01:49.9]} 22... a5 {[%clk 0:02:05.5]} 23. f5 {[%clk 0:01:44.2]} 23... b4
{[%clk 0:02:02.8]} 24. axb4 {[%clk 0:01:43.1]} 24... axb4 {[%clk 0:02:02.4]} 25.
cxb4 {[%clk 0:01:33]} 25... Rc4 {[%clk 0:01:52.7]} 26. fxe6 {[%clk 0:01:28.8]}
26... Bxb4 {[%clk 0:01:47.7]} 27. Nxb4 {[%clk 0:01:15.6]} 27... Rxb4 {[%clk
0:01:47.3]} 28. e7 {[%clk 0:01:16]} 28... Re8 {[%clk 0:01:42.5]} 29. Rd2 {[%clk
0:01:13]} 29... Kg7 {[%clk 0:01:31.8]} 30. g4 {[%clk 0:00:52]} 30... Kg6 {[%clk
0:01:30.7]} 31. Kg2 {[%clk 0:00:45.7]} 31... f5 {[%clk 0:01:25.6]} 32. gxf5+
{[%clk 0:00:26.2]} 32... Kxf5 {[%clk 0:01:26.5]} 33. Re5+ {[%clk 0:00:26.3]}
33... Kf6 {[%clk 0:01:24]} 34. Rf2+ {[%clk 0:00:25.1]} 34... Kg6 {[%clk
0:01:21.6]} 35. Rd2 {[%clk 0:00:21.4]} 35... f6 {[%clk 0:01:17.3]} 36. Rxd5
{[%clk 0:00:20.2]} 36... Rxe7 {[%clk 0:01:17]} 37. Rd6 {[%clk 0:00:20.1]} 37...
h5 {[%clk 0:01:11.2]} 38. Rf2 {[%clk 0:00:19.9]} 38... Rf7 {[%clk 0:01:11]} 39.
d5 {[%clk 0:00:19.4]} 39... Kg5 {[%clk 0:01:09]} 40. Rd8 {[%clk 0:00:17.5]}
40... f5 {[%clk 0:01:04.5]} 41. d6 {[%clk 0:00:15.6]} 41... f4 {[%clk
0:01:01.7]} 42. Rd2 {[%clk 0:00:08.6]} 42... f3+ {[%clk 0:00:59.7]} 43. Kf2
{[%clk 0:00:08.9]} 43... Kf4 {[%clk 0:00:55.4]} 44. d7 {[%clk 0:00:08.1]} 44...
Rb7 {[%clk 0:00:54.8]} 45. b4 {[%clk 0:00:05.1]} 45... Rxb4 {[%clk 0:00:50.6]}
46. Rh8 {[%clk 0:00:03.3]} 46... Rxd7 {[%clk 0:00:29.8]} 47. Rxd7 {[%clk
0:00:04.2]} 47... Rb2+ {[%clk 0:00:29.7]} 48. Kf1 {[%clk 0:00:03.1]} 48... Rb1+
{[%clk 0:00:28.6]} 49. Kf2 {[%clk 0:00:02.7]} 49... Rb2+ {[%clk 0:00:28.2]} 50.
Ke1 {[%clk 0:00:02.9]} 50... Re2+ {[%clk 0:00:23.7]} 51. Kf1 {[%clk 0:00:02.8]}
51... Ra2 {[%clk 0:00:20]} 52. Rf8+ {[%clk 0:00:03.4]} 52... Kg3 {[%clk
0:00:17.2]} 53. Rg7+ {[%clk 0:00:03.6]} 53... Kxh3 {[%clk 0:00:15.5]} 54. Rxf3+
{[%clk 0:00:04.5]} 54... Kh2 {[%clk 0:00:10.5]} 55. Rf2+ {[%clk 0:00:04.7]}
55... Rxf2+ {[%clk 0:00:09.3]} 56. Kxf2 {[%clk 0:00:05.6]} 56... h4 {[%clk
0:00:09.7]} 57. Kf3 {[%clk 0:00:02.7]} 57... h3 {[%clk 0:00:07.7]} 58. Rh7
{[%clk 0:00:03.4]} 58... Kg1 {[%clk 0:00:04.9]} 59. Rxh3 {[%clk 0:00:04.3]}
59... Kf1 {[%clk 0:00:04.5]} 60. Rh1# {[%clk 0:00:04.9]} 1-0

[Event "Early-Titled-Tuesday-Blitz-February-06-2024"]
[Site "Chess.com"]
[Date "2024.02.06"]
[Round "8"]
[White "SahibSinghKnight"]
[Black "Juicy_Fork"]
[Result "1-0"]
[WhiteElo "2648"]
[BlackElo "2455"]
[TimeControl "180+1"]
[EndTime "9:29:17 PST"]
[Termination "SahibSinghKnight won by resignation"]

1. e4 {[%clk 0:03:00.9]} 1... e5 {[%clk 0:02:59.8]} 2. Nf3 {[%clk 0:03:01.1]}
2... Nc6 {[%clk 0:02:58.7]} 3. Bb5 {[%clk 0:03:01.1]} 3... a6 {[%clk 0:02:57.4]}
4. Ba4 {[%clk 0:03:01.5]} 4... d6 {[%clk 0:02:57.7]} 5. c3 {[%clk 0:03:00.9]}
5... Bd7 {[%clk 0:02:55.3]} 6. O-O {[%clk 0:02:59.7]} 6... g6 {[%clk 0:02:55.4]}
7. d4 {[%clk 0:02:52]} 7... Bg7 {[%clk 0:02:55.3]} 8. h3 {[%clk 0:02:49.5]} 8...
Nf6 {[%clk 0:02:54.6]} 9. Re1 {[%clk 0:02:48.6]} 9... O-O {[%clk 0:02:54.4]} 10.
Nbd2 {[%clk 0:02:39.5]} 10... Re8 {[%clk 0:02:54.8]} 11. d5 {[%clk 0:02:36.7]}
11... Ne7 {[%clk 0:02:53.2]} 12. Bxd7 {[%clk 0:02:36.7]} 12... Nxd7 {[%clk
0:02:50.7]} 13. Nf1 {[%clk 0:02:31.5]} 13... h6 {[%clk 0:02:48.9]} 14. c4 {[%clk
0:02:30.6]} 14... f5 {[%clk 0:02:48.4]} 15. exf5 {[%clk 0:02:28.2]} 15... gxf5
{[%clk 0:02:45.8]} 16. Ng3 {[%clk 0:02:28.2]} 16... Nf6 {[%clk 0:02:41.6]} 17.
Nh4 {[%clk 0:02:26.9]} 17... Qd7 {[%clk 0:02:33.7]} 18. Qc2 {[%clk 0:02:18.1]}
18... f4 {[%clk 0:02:29.5]} 19. Ne4 {[%clk 0:02:07.2]} 19... Nh7 {[%clk
0:02:22.6]} 20. Qe2 {[%clk 0:02:02.4]} 20... Nf5 {[%clk 0:02:18.2]} 21. Qg4
{[%clk 0:02:00.6]} 21... Rf8 {[%clk 0:02:13.6]} 22. b3 {[%clk 0:01:24.4]} 22...
Qf7 {[%clk 0:02:03.1]} 23. Nxf5 {[%clk 0:01:23.6]} 23... Qxf5 {[%clk 0:02:01.6]}
24. Qxf5 {[%clk 0:01:23.6]} 24... Rxf5 {[%clk 0:02:01.6]} 25. Bb2 {[%clk
0:01:23.3]} 25... Ng5 {[%clk 0:02:00.4]} 26. f3 {[%clk 0:01:22.8]} 26... Nxe4
{[%clk 0:01:58.8]} 27. Rxe4 {[%clk 0:01:21.8]} 27... Kf7 {[%clk 0:01:58.9]} 28.
Rc1 {[%clk 0:01:16.6]} 28... Bf6 {[%clk 0:01:59.1]} 29. c5 {[%clk 0:01:16]}
29... Be7 {[%clk 0:01:55.3]} 30. b4 {[%clk 0:01:11]} 30... a5 {[%clk 0:01:53.2]}
31. cxd6 {[%clk 0:01:07]} 31... Bxd6 {[%clk 0:01:53.2]} 32. b5 {[%clk
0:01:07.2]} 32... a4 {[%clk 0:01:36.1]} 33. Rce1 {[%clk 0:00:52]} 33... Kf6
{[%clk 0:01:14.7]} 34. Bc3 {[%clk 0:00:51.5]} 34... a3 {[%clk 0:01:13.2]} 35. g4
{[%clk 0:00:37.6]} 35... fxg3 {[%clk 0:01:10.5]} 36. f4 {[%clk 0:00:37.3]} 36...
Re8 {[%clk 0:00:56.5]} 37. fxe5+ {[%clk 0:00:36.5]} 37... Bxe5 {[%clk
0:00:55.2]} 38. Rxe5 {[%clk 0:00:34.8]} 38... Rexe5 {[%clk 0:00:54.7]} 39. Rxe5
{[%clk 0:00:27]} 39... Rxe5 {[%clk 0:00:55]} 40. b6 {[%clk 0:00:26.8]} 40... Kf5
{[%clk 0:00:15.7]} 41. Bxe5 {[%clk 0:00:22.7]} 41... cxb6 {[%clk 0:00:15.5]} 42.
d6 {[%clk 0:00:21.2]} 42... Ke6 {[%clk 0:00:15.2]} 43. Bxg3 {[%clk 0:00:21.1]}
43... b5 {[%clk 0:00:15.7]} 44. Be1 {[%clk 0:00:15.5]} 44... Kxd6 {[%clk
0:00:12.9]} 45. Bb4+ {[%clk 0:00:16.1]} 45... Ke5 {[%clk 0:00:04.1]} 46. Bxa3
{[%clk 0:00:16.5]} 46... Kf4 {[%clk 0:00:04.5]} 47. Kf2 {[%clk 0:00:16.7]} 47...
h5 {[%clk 0:00:05.1]} 48. Bc1+ {[%clk 0:00:15.9]} 48... Kf5 {[%clk 0:00:05.2]}
49. Kg3 {[%clk 0:00:15.9]} 49... b6 {[%clk 0:00:01.5]} 50. Kh4 {[%clk 0:00:16]}
50... Kg6 {[%clk 0:00:02.4]} 51. Be3 {[%clk 0:00:16.4]} 51... b4 {[%clk
0:00:02.4]} 52. Bxb6 {[%clk 0:00:16.4]} 52... Kh6 {[%clk 0:00:02.3]} 53. Be3+
{[%clk 0:00:17.1]} 53... Kg6 {[%clk 0:00:02.8]} 54. Bd2 {[%clk 0:00:18]} 54...
Kf5 {[%clk 0:00:02.3]} 55. Bxb4 {[%clk 0:00:17.4]} 55... Ke4 {[%clk 0:00:03.2]}
56. Kxh5 {[%clk 0:00:17.4]} 56... Kf3 {[%clk 0:00:03.7]} 57. h4 {[%clk
0:00:17.3]} 57... Kg3 {[%clk 0:00:04.6]} 58. Kg5 {[%clk 0:00:17.7]} 1-0